bitfinex/quotes_ETHUSD_20250725
["timestamp","ask_amount","ask_price","bid_price","bid_amount"]
[1753420418766,14.0252174,3630.4,3630.3,0.001]
[1753420419137,14.1628174,3630.4,3630.3,0.001]
[1753420419866,3.30466916,3630.2,3630.1,0.04]
[1753420420168,3.30497272,3629.8,3629.7,0.001]
[1753420420369,11.62737272,3629.8,3629.7,0.001]
[1753420420569,12.68367272,3629.8,3629.7,0.001]
[1753420420871,23.59728272,3629.8,3629.7,0.001]
[1753420421072,28.10328272,3629.8,3629.7,0.001]
[1753420422056,23.14098272,3629.8,3629.7,0.001]
[1753420422257,12.59698272,3629.8,3629.7,0.001]
[1753420422770,7.6426,3629.8,3629.7,0.001]
[1753420423172,10.39757272,3629.8,3629.7,0.001]
[1753420423375,7.6426,3629.8,3629.7,0.001]
[1753420423934,7.6426,3629.8,3624.8,4.96779651]
[1753420423935,1.00632146,3629.2,3624.8,4.96779651]
[1753420424138,1.00632146,3629.2,3624.1,0.04]
[1753420424139,30.0,3624.7,3624.1,0.04]
[1753420424379,0.430879,3627.6,3621.9,1.30586594]
[1753420424380,30.0,3623.8,3621.9,6.76302887]
[1753420424555,35.48741439,3624.6,3620.2,9.68219826]
[1753420424556,2.75968649,3623.6,3620.2,9.68219826]
[1753420424758,5.366,3623.5,3620.0,0.4696]
[1753420424949,1.47879831,3621.4,3619.6,0.4759]
[1753420425193,1.96791776,3621.9,3620.3,0.4696]
[1753420425194,1.47879831,3620.5,3620.3,0.4696]
[1753420425394,2.55943708,3620.4,3619.0,0.8159]
[1753420425542,0.73684455,3619.7,3619.6,2.40218491]
[1753420425744,0.11651932,3619.7,3619.6,9.85373443]
[1753420425976,0.11651932,3619.7,3619.6,10.40963621]
[1753420426176,0.11651932,3619.7,3619.6,11.32553621]
[1753420426378,1.95993386,3620.0,3619.9,2.76250725]
[1753420426579,2.45947209,3620.5,3619.9,3.21293781]
[1753420426808,1.96002047,3620.0,3619.6,0.8159]
[1753420426951,2.94020351,3620.1,3619.4,7.171]
[1753420427146,2.94020351,3620.1,3619.1,0.04]
[1753420427147,2.45547209,3619.8,3619.1,0.04]
[1753420427374,3.44326093,3619.5,3618.7,0.4624]
[1753420427700,3.44326093,3619.5,3619.1,0.4624]
[1753420428003,1.95545843,3619.2,3619.0,2.76317602]
[1753420428156,3.44326093,3619.6,3617.9,7.90689822]
[1753420428157,1.95545843,3619.3,3619.2,3.0]
[1753420428352,0.48073142,3620.1,3619.3,3.0]
[1753420428554,3.44326093,3619.8,3619.7,2.76265819]
[1753420428750,3.44326093,3619.8,3619.7,12.42325819]
[1753420428991,1.94429611,3620.1,3620.0,5.76243093]
[1753420429191,4.91894419,3620.5,3620.4,0.8159]
[1753420429192,0.86286409,3620.5,3620.4,0.8159]
[1753420429355,6.39462745,3621.2,3620.5,2.76204944]
[1753420429676,12.5498615,3623.4,3621.4,2.761363]
[1753420429677,7.83196951,3622.3,3621.4,2.761363]
[1753420429875,7.83196951,3622.3,3621.6,7.17886358]
[1753420430087,7.83196951,3622.3,3622.2,2.76075313]
[1753420430289,7.83196951,3622.3,3622.2,2.78485313]
[1753420430465,7.83196951,3622.3,3621.5,7.176]
[1753420430665,7.83196951,3622.3,3621.6,5.7331]
[1753420430985,7.83196951,3622.3,3622.2,2.76075313]
[1753420431287,7.83196951,3622.3,3622.0,2.76087348]
[1753420431477,7.83196951,3622.3,3622.2,2.76075313]
[1753420431672,7.83196951,3622.4,3622.3,2.76067691]
[1753420431878,7.83196951,3622.4,3622.3,8.45867691]
[1753420432281,7.83196951,3622.4,3622.3,3.54967691]
[1753420432592,3.05723765,3622.4,3622.3,6.26295375]
[1753420432779,3.05723765,3622.4,3622.3,10.22969743]
[1753420433158,3.05723765,3622.4,3622.3,4.53369743]
[1753420433358,9.78996189,3623.4,3622.8,2.7602959]
[1753420433764,9.78996189,3623.5,3622.8,2.7602959]
[1753420434278,9.78996189,3623.5,3622.8,2.8986959]
[1753420434605,3.4595,3623.4,3622.8,5.674]
[1753420434968,0.4595,3623.4,3622.8,6.2414]
[1753420435173,3.0,3623.4,3622.8,9.0016959]
[1753420435373,3.0,3623.4,3622.8,6.76434786]
[1753420435691,3.0,3623.4,3622.8,4.00405196]
[1753420435870,9.78996189,3623.1,3622.8,5.665]
[1753420436400,9.78996189,3623.1,3622.7,2.76036035]
[1753420436603,9.78996189,3623.1,3621.0,2.76161664]
[1753420436773,4.8409842,3621.7,3621.6,2.76121051]
[1753420437279,4.8409842,3621.7,3621.6,11.86061621]
[1753420437612,6.29327947,3622.3,3622.2,2.76075313]
[1753420437914,2.76087791,3622.1,3620.9,2.76174431]
[1753420438075,4.84288019,3621.4,3621.0,5.643]
[1753420438275,0.58103292,3621.3,3621.0,5.643]
[1753420438500,0.58103292,3621.2,3621.1,3.60216595]
[1753420438696,0.58103292,3621.2,3621.0,5.643]
[1753420438898,5.42391311,3621.1,3620.6,9.93994948]
[1753420439116,0.58103292,3621.0,3620.9,5.639]
[1753420439424,4.84288019,3621.1,3620.9,5.636]
[1753420439574,2.76121584,3621.6,3620.9,7.19368853]
[1753420439774,3.22048922,3621.9,3620.9,7.19368853]
[1753420439775,0.4957,3621.7,3620.9,1.55768853]
[1753420439971,2.76172968,3621.0,3620.8,0.001]
[1753420440272,3.0,3622.2,3620.8,0.001]
[1753420440273,0.4595,3622.1,3621.1,0.001]
[1753420440514,0.4957,3622.4,3621.2,0.5629]
[1753420440685,0.4595,3622.2,3621.3,5.626]
[1753420440888,0.4957,3622.1,3621.1,0.001]
[1753420441088,2.76128675,3621.5,3621.4,5.622]
[1753420441395,3.0,3621.7,3621.4,5.625]
[1753420441598,0.4595,3622.0,3621.4,5.625]
[1753420441803,2.76082935,3622.1,3621.4,0.5626]
[1753420442111,2.76096893,3622.0,3621.5,5.621]
[1753420442314,2.76096893,3622.0,3620.6,0.7763]
[1753420442315,0.8002,3621.8,3619.1,0.04]
[1753420442518,0.8002,3621.8,3615.7,0.7773]
[1753420442519,3.0,3619.5,3617.4,2.7643568]
[1753420442718,3.0,3619.1,3617.3,0.7773]
[1753420442888,1.20929146,3619.0,3617.6,5.639]
[1753420443077,0.25409146,3618.9,3618.2,2.7638052]
[1753420443278,0.25409146,3618.8,3618.2,0.55677335]
[1753420443514,0.4595,3619.6,3618.3,0.02763728]
[1753420443688,0.4595,3619.6,3618.4,5.66263652]
[1753420443689,0.253373,3619.5,3618.4,5.66263652]
[1753420444036,0.4595,3620.2,3619.6,2.76269408]
[1753420444180,0.4595,3620.2,3620.1,2.76235463]
[1753420444379,0.7673,3620.7,3620.1,2.76235463]
[1753420444380,0.74912779,3621.0,3620.6,2.76197315]
[1753420444580,0.25307132,3620.9,3620.8,2.76182059]
[1753420445013,0.04,3621.9,3621.8,2.76105803]
[1753420445314,0.29342779,3621.9,3621.4,8.40035718]
[1753420445538,0.29342779,3621.9,3621.4,5.639]
[1753420445539,0.04,3621.9,3621.4,5.639]
[1753420445923,0.04,3621.9,3621.8,2.76105803]
[1753420446121,0.29306708,3621.9,3621.8,2.76105803]
[1753420446283,0.29306708,3621.9,3621.8,5.633]
[1753420446483,0.29306708,3621.9,3621.8,8.39405803]
[1753420447019,0.29306708,3621.9,3621.0,2.76159278]
[1753420447020,1.24826708,3621.9,3619.4,2.83525629]
[1753420447186,0.25306708,3621.8,3619.7,9.9436205]
[1753420447381,0.7657,3621.2,3619.7,7.181]
[1753420447600,3.0,3620.9,3620.1,2.76235399]
[1753420447803,0.25318174,3620.8,3620.2,2.76226632]
[1753420448001,0.25318173,3620.7,3620.1,2.76234293]
[1753420448209,0.25318173,3620.6,3620.2,5.619]
[1753420448410,0.71268173,3620.5,3620.2,5.619]
[1753420448686,0.25318173,3620.4,3620.3,2.76219311]
[1753420448913,0.25318173,3620.4,3620.2,8.37926516]
[1753420449098,3.7657,3621.2,3619.6,2.76269905]
[1753420449099,1.20827392,3620.3,3619.6,2.76269905]
[1753420449320,0.25307392,3620.2,3619.4,2.76288887]
[1753420449520,0.4957,3620.7,3620.3,2.7621405]
[1753420449737,0.25306166,3620.6,3620.2,2.76226776]
[1753420449933,0.4595,3621.0,3620.5,2.76202903]
[1753420450121,2.76182059,3620.8,3619.9,2.76249255]
[1753420450306,3.0,3620.7,3619.9,5.603]
[1753420450518,0.4595,3620.6,3619.9,5.603]
[1753420450841,0.4595,3620.6,3619.7,8.36565988]
[1753420451042,2.76246519,3620.0,3619.2,2.76303124]
[1753420451245,0.9552,3619.9,3619.1,0.04]
[1753420451416,2.76259758,3619.8,3619.2,5.597]
[1753420451817,2.76267698,3619.7,3619.2,5.597]
[1753420452144,2.76267698,3619.7,3619.1,0.04]
[1753420452145,5.76304155,3619.2,3619.1,0.04]
[1753420452352,6.54714155,3619.2,3619.1,0.04]
[1753420452654,2.76354743,3618.6,3618.1,0.04]
[1753420452823,2.76352157,3618.6,3618.1,0.04]
[1753420453144,3.0,3619.2,3618.1,0.04]
[1753420453317,0.4957,3619.7,3618.2,0.02763805]
[1753420453651,3.4957,3619.7,3618.1,0.04]
[1753420453950,0.55,3619.3,3618.1,0.04]
[1753420454108,0.4595,3619.2,3618.3,0.001]
[1753420454313,0.4595,3619.2,3618.1,0.04]
[1753420454314,5.76365244,3618.4,3618.1,0.04]
[1753420454509,5.28776524,3618.3,3617.1,0.04]
[1753420454708,6.52076928,3617.2,3617.1,0.04]
[1753420455021,3.52076928,3617.2,3617.1,0.04]
[1753420455346,1.7074,3617.2,3616.1,0.04]
[1753420455568,0.4595,3617.1,3616.1,0.04]
[1753420455743,0.4595,3617.1,3616.4,2.76518025]
[1753420456052,2.76402004,3618.0,3616.4,2.76518025]
[1753420456053,0.9552,3618.0,3617.7,2.76416915]
[1753420456343,0.9552,3617.9,3616.9,5.632]
[1753420456545,0.58712254,3619.1,3617.0,0.59084722]
[1753420456730,0.4595,3619.0,3617.1,0.55]
[1753420456943,1.28703523,3619.6,3617.4,0.7976]
[1753420457255,3.60387015,3619.5,3617.5,2.76434001]
[1753420457554,0.446,3619.6,3617.6,0.38383663]
[1753420457555,0.04,3618.9,3617.6,0.38383663]
[1753420457744,0.04,3618.9,3617.8,2.76411078]
[1753420457941,0.04,3618.9,3618.0,2.76395798]
[1753420458143,0.04,3618.9,3618.7,2.76337899]
[1753420458341,0.04,3618.9,3617.8,2.76405916]
[1753420458543,0.04,3618.9,3617.9,0.87502532]
[1753420458743,0.04,3618.9,3618.4,2.76364982]
[1753420458931,0.9366,3618.8,3617.6,0.356194]
[1753420459133,2.76357083,3618.6,3617.6,2.76419465]
[1753420459357,0.446,3618.5,3617.9,2.76396442]
[1753420459521,3.20962947,3618.5,3617.5,0.0276434]
[1753420459726,3.20962947,3618.5,3614.6,3.63786646]
[1753420459727,0.8252,3616.1,3614.6,3.63786646]
[1753420460051,0.9366,3616.0,3614.6,0.2495]
[1753420460245,0.9366,3616.0,3614.7,0.30161197]
[1753420460446,0.9366,3616.0,3614.6,0.2495]
[1753420460651,0.9366,3616.0,3614.7,0.02766481]
[1753420461165,3.0,3615.9,3615.0,2.76623468]
[1753420461548,0.8252,3616.1,3614.6,7.1884]
[1753420461750,6.21111293,3616.5,3615.3,2.76595551]
[1753420462048,2.76536019,3616.2,3615.1,2.76611716]
[1753420462251,2.76536019,3616.2,3614.8,2.76640478]
[1753420462252,2.76574676,3615.7,3614.8,2.76634008]
[1753420462465,2.76553137,3616.0,3614.8,6.123]
[1753420462466,2.76565271,3615.8,3614.8,6.123]
[1753420462665,0.446,3616.0,3614.8,7.18897789]
[1753420462828,3.0,3616.1,3615.2,2.76609274]
[1753420463159,0.446,3616.6,3615.3,0.02766022]
[1753420463361,5.76556704,3615.9,3614.8,7.18897789]
[1753420463566,0.4906,3616.5,3614.9,0.82413779]
[1753420463749,3.0,3615.9,3615.0,2.76618358]
[1753420464060,0.446,3616.4,3614.8,6.123]
[1753420464263,2.76559093,3615.9,3614.9,2.76632825]
[1753420464461,3.0,3615.8,3614.8,2.76638609]
[1753420464643,3.0,3615.9,3614.8,6.098]
[1753420464842,3.0,3615.9,3614.8,8.86439521]
[1753420465157,1.78968348,3615.9,3614.6,7.1504]
[1753420465342,0.1384,3615.7,3615.1,0.1384]
[1753420465868,2.90411663,3615.7,3615.1,0.1384]
[1753420466071,3.0,3615.5,3614.6,7.1374]
[1753420466238,0.1384,3615.7,3615.0,0.1384]
[1753420466425,2.90417267,3615.7,3615.0,0.1384]
[1753420466748,2.90417897,3615.7,3615.0,0.1384]
[1753420466952,3.1384,3615.7,3615.0,0.1384]
[1753420467469,5.90413221,3615.7,3615.0,0.1384]
[1753420467767,1.756,3615.6,3614.6,0.2505]
[1753420467985,0.446,3615.5,3614.6,0.2505]
[1753420468286,3.446,3616.1,3614.7,0.02766481]
[1753420468491,0.446,3616.1,3614.9,2.76632825]
[1753420468795,0.446,3616.1,3614.8,6.059]
[1753420468796,0.5306,3616.9,3615.3,2.76602218]
[1753420468931,0.04,3616.9,3615.5,0.55]
[1753420469356,0.04,3616.9,3615.4,0.1215]
[1753420469568,0.04,3616.9,3615.4,0.49862548]
[1753420471437,1e-08,3616.9,3616.8,9.5712501]
[1753420471633,1e-08,3616.9,3616.8,3.5402501]
[1753420471866,1e-08,3616.9,3616.8,9.5602501]
[1753420472542,1e-08,3616.9,3616.8,10.3815501]
[1753420473075,1e-08,3616.9,3616.8,8.78487502]
[1753420473852,1e-08,3616.9,3616.8,8.90637502]
[1753420474053,1e-08,3616.9,3616.8,9.01717502]
[1753420475140,1e-08,3616.9,3616.8,4.31837502]
[1753420475450,1e-08,3616.9,3616.8,10.33102377]
[1753420475637,1e-08,3616.9,3616.8,14.61297504]
[1753420475839,1e-08,3616.9,3616.8,14.60797504]
[1753420476067,1e-08,3616.9,3616.8,8.62797504]
[1753420476262,1e-08,3616.9,3616.8,14.60097504]
[1753420476679,1e-08,3617.9,3616.8,14.60097504]
[1753420476878,1e-08,3617.9,3617.8,3.53531078]
[1753420477042,1e-08,3617.9,3617.8,2.76411078]
[1753420477373,1e-08,3617.9,3617.8,8.72711078]
[1753420477575,1e-08,3617.9,3617.8,5.963]
[1753420477748,0.44600001,3617.9,3616.9,4.50132728]
[1753420477949,0.44600001,3617.9,3617.7,0.1384]
[1753420478572,0.93660001,3617.9,3617.5,2.76433042]
[1753420478773,0.49060001,3617.9,3617.5,0.1384]
[1753420478952,0.18324464,3617.8,3617.6,5.946]
[1753420479154,1e-08,3617.9,3617.8,0.1384]
[1753420479341,0.43981211,3617.9,3617.7,2.90252673]
[1753420479542,0.18329046,3617.8,3617.7,2.90252673]
[1753420479943,1.37640354,3617.8,3617.7,0.1384]
[1753420480146,1.37640354,3617.8,3617.7,5.929]
[1753420481344,2.7642636,3617.6,3617.5,0.1384]
[1753420481545,2.7642636,3617.6,3616.1,2.76535618]
[1753420481546,0.18329046,3617.6,3617.2,2.7645129]
[1753420481769,0.18329046,3617.5,3617.4,2.76441643]
[1753420482282,0.18329046,3617.5,3617.4,2.90281643]
[1753420482477,0.18329046,3617.5,3617.4,8.82081643]
[1753420482983,0.18329046,3617.5,3617.4,6.0504]
[1753420483284,1.11989046,3617.5,3616.1,2.76541024]
[1753420483589,1.00889046,3617.4,3617.0,2.76472214]
[1753420483794,0.18329046,3617.3,3617.0,8.80610981]
[1753420483959,0.4906,3617.8,3617.4,2.76441643]
[1753420484161,0.18374681,3617.7,3617.4,0.1384]
[1753420484360,0.44094901,3617.6,3617.4,0.1384]
[1753420484578,0.44094901,3617.5,3617.4,2.90279904]
[1753420484759,0.44094901,3617.5,3617.4,8.79679904]
[1753420485101,0.44094901,3617.5,3616.6,2.76501729]
[1753420485102,0.44094901,3617.5,3616.0,2.76648219]
[1753420485260,0.44094901,3617.4,3616.3,5.889]
[1753420485460,0.7759,3617.6,3616.3,5.889]
[1753420485461,0.7759,3617.6,3617.4,2.76439979]
[1753420485680,0.44106908,3617.5,3617.1,0.001]
[1753420485850,0.44106908,3617.4,3617.1,0.001]
[1753420486050,0.44106908,3617.3,3617.1,2.76558342]
[1753420486379,0.44106908,3617.2,3617.1,2.76558342]
[1753420487195,0.49060001,3617.9,3617.1,2.76558342]
[1753420487196,1e-08,3617.9,3617.8,2.76411078]
[1753420488368,1e-08,3617.9,3617.1,0.001]
[1753420488573,1e-08,3617.9,3617.8,2.76411078]
[1753420491206,0.43460001,3617.9,3617.4,0.02764416]
[1753420491372,0.912,3617.8,3617.5,5.841]
[1753420491579,1.7169,3617.7,3617.0,5.831]
[1753420491786,1.7169,3617.7,3617.5,2.76427172]
[1753420492090,0.8049,3617.7,3617.6,2.7642636]
[1753420492254,1e-08,3617.9,3617.6,2.76425714]
[1753420492463,0.4346,3617.8,3617.6,2.76419782]
[1753420492661,0.4346,3617.8,3617.7,2.76418719]
[1753420493130,0.912,3617.8,3617.7,2.76418719]
[1753420493488,0.912,3617.8,3617.7,3.31703854]
[1753420494009,1e-08,3617.9,3617.8,2.76411078]
[1753420494412,0.47740001,3617.9,3617.8,2.76411078]
[1753420494778,1e-08,3617.9,3617.8,2.76411078]
[1753420495207,1e-08,3617.9,3617.8,2.90251078]
[1753420495429,1e-08,3617.9,3617.6,2.76418808]
[1753420495594,0.43460001,3617.9,3617.7,2.76417103]
[1753420495794,1e-08,3617.9,3617.8,2.76411078]
[1753420495984,1e-08,3617.9,3617.1,9.14481553]
[1753420496319,0.43460001,3617.9,3617.2,0.91448155]
[1753420496495,0.4346,3617.8,3617.7,2.76418554]
[1753420496814,1e-08,3617.9,3617.2,5.785]
[1753420496999,1e-08,3617.9,3617.8,2.76411078]
[1753420497212,1.654,3617.6,3615.1,0.04]
[1753420497393,0.7541,3617.1,3615.2,0.02766098]
[1753420497593,0.7541,3617.1,3615.2,2.79370874]
[1753420497793,3.912,3617.0,3615.3,2.76602218]
[1753420498017,3.0,3616.6,3615.8,2.76562378]
[1753420498181,3.0,3616.4,3615.8,2.76562378]
[1753420498382,3.0,3616.8,3615.6,0.02765792]
[1753420498580,1.97572879,3618.8,3615.6,0.02765792]
[1753420498581,2.76521672,3616.4,3615.6,0.001]
[1753420498777,3.0,3616.4,3615.6,0.001]
[1753420499135,3.0,3616.6,3615.7,2.76566384]
[1753420499295,3.0,3616.6,3616.3,0.001]
[1753420499497,3.59378084,3616.4,3616.3,0.001]
[1753420499700,6.59378084,3616.4,3616.3,0.001]
[1753420500040,7.50578084,3616.4,3616.3,0.001]
[1753420501819,4.7406,3616.4,3616.3,0.001]
[1753420502899,0.7818,3616.9,3616.3,0.001]
[1753420503099,0.7818,3616.9,3616.6,2.76501973]
[1753420503298,0.4774,3617.2,3616.6,2.76501973]
[1753420503520,0.4774,3617.2,3616.8,2.76482837]
[1753420503724,0.8142,3617.4,3616.3,0.001]
[1753420503946,0.4774,3617.8,3616.4,0.27662751]
[1753420504297,0.43460001,3617.9,3617.6,2.76422885]
[1753420504727,1e-08,3617.9,3617.6,2.76426266]
[1753420504931,1e-08,3617.9,3616.9,2.76475469]
[1753420505236,1e-08,3617.9,3617.7,2.76413906]
[1753420505411,1e-08,3617.9,3617.8,2.90251078]
[1753420506511,1e-08,3617.9,3617.8,2.93015188]
[1753420506909,1e-08,3617.9,3617.8,2.90251078]
[1753420508737,0.00200001,3617.9,3617.8,2.90251078]
[1753420509229,0.00200001,3617.9,3617.8,3.46918258]
[1753420511342,0.00200001,3617.9,3617.8,2.90251078]
[1753420512827,0.00200001,3617.9,3617.8,2.93015188]
[1753420513163,0.00200001,3617.9,3617.8,2.90251078]
[1753420513539,0.00200001,3617.9,3617.8,0.1384]
[1753420513838,0.43660001,3617.9,3617.8,2.90251078]
[1753420514010,0.43660001,3617.9,3617.1,0.001]
[1753420514011,0.91400001,3617.9,3617.5,2.76428969]
[1753420514210,0.912,3617.8,3617.6,2.76425857]
[1753420514412,0.00200001,3617.9,3617.8,2.76411078]
[1753420514611,0.4346,3617.8,3617.5,0.1384]
[1753420514934,3.0,3617.5,3617.2,0.1384]
[1753420515135,0.1384,3617.5,3617.1,0.001]
[1753420515436,0.573,3617.8,3617.4,2.76435471]
[1753420515600,0.00200001,3617.9,3617.3,0.1384]
[1753420515804,0.00200001,3617.9,3617.8,2.76411078]
[1753420516001,0.00200001,3617.9,3617.6,0.1384]
[1753420516369,0.912,3617.8,3617.3,2.76443338]
[1753420516646,0.912,3617.7,3617.3,0.1384]
[1753420517053,0.912,3617.7,3617.1,0.001]
[1753420517054,0.7739,3617.5,3617.1,0.001]
[1753420517236,0.1384,3617.2,3617.1,0.001]
[1753420517714,1.0685,3617.2,3617.1,0.001]
[1753420517916,0.9301,3617.2,3617.1,0.001]
[1753420518528,0.7739,3617.5,3617.1,0.001]
[1753420518727,0.7739,3617.5,3617.4,2.76441643]
[1753420518911,0.5724,3617.8,3617.5,2.76432728]
[1753420519118,0.9301,3617.7,3617.1,0.001]
[1753420519449,1.0685,3617.7,3617.2,2.90294367]
[1753420519762,0.434,3617.6,3617.4,2.76440495]
[1753420519913,0.1384,3617.8,3617.7,2.76418719]
[1753420520115,0.00200001,3617.9,3617.7,2.76418719]
[1753420520333,0.434,3617.8,3617.5,0.1384]
[1753420520663,3.0,3617.6,3617.1,0.001]
[1753420520946,0.9301,3617.5,3617.1,0.1394]
[1753420521242,0.1384,3617.6,3617.1,0.1394]
[1753420521243,0.1384,3617.8,3617.1,2.90403639]
[1753420521615,0.1384,3617.8,3617.3,2.76444142]
[1753420521816,0.00200001,3617.9,3617.4,0.02764416]
[1753420522115,0.00200001,3617.9,3617.6,0.1384]
[1753420522429,0.00200001,3617.9,3617.8,2.76411078]
[1753420522765,0.00200001,3617.9,3617.5,0.1384]
[1753420522766,0.9301,3617.8,3617.5,0.1384]
[1753420522929,0.434,3617.7,3617.5,0.1384]
[1753420523263,0.9301,3617.7,3617.6,2.7642636]
[1753420523753,0.434,3617.7,3617.6,2.7642636]
[1753420524052,0.00200001,3617.9,3617.5,0.1384]
[1753420524238,0.00200001,3617.9,3617.8,2.76411078]
[1753420525136,0.00200001,3617.9,3617.7,0.1384]
[1753420525341,0.9301,3617.8,3617.1,0.001]
[1753420525562,0.9301,3617.8,3617.3,2.76447133]
[1753420525761,0.00200001,3617.9,3617.3,2.76447133]
[1753420525935,0.9301,3617.7,3617.2,2.76454844]
[1753420526135,0.434,3617.6,3617.2,2.76454844]
[1753420526593,0.434,3617.6,3617.3,2.76449103]
[1753420527079,0.434,3617.6,3617.2,2.76452775]
[1753420527371,0.434,3617.6,3617.4,2.7643688]
[1753420527535,0.4961,3617.7,3617.4,2.7643688]
[1753420527730,0.00200001,3617.9,3617.5,2.76432206]
[1753420527932,0.00200001,3617.9,3617.1,5.528]
[1753420528187,0.00200001,3617.9,3617.8,2.76411078]
[1753420528440,1e-08,3617.9,3617.8,9.13845188]
[1753420528739,1e-08,3617.9,3617.8,9.23231078]
[1753420529072,1e-08,3617.9,3617.8,2.76411078]
[1753420530066,1e-08,3617.9,3617.8,3.87211241]
[1753420530280,1e-08,3617.9,3617.8,3.89975351]
[1753420530571,1e-08,3617.9,3617.8,3.87211241]
[1753420530770,1e-08,3617.9,3617.8,9.38211241]
[1753420531275,1e-08,3617.9,3617.8,9.50361241]
[1753420531836,1e-08,3617.9,3617.8,9.38211241]
[1753420532650,1e-08,3617.9,3617.8,3.87211241]
[1753420533148,1e-08,3617.9,3617.8,9.35811241]
[1753420533766,1e-08,3617.9,3617.8,9.47961241]
[1753420534084,1e-08,3617.9,3617.8,9.35811241]
[1753420534249,1e-08,3617.9,3617.8,9.60621241]
[1753420534649,1e-08,3617.9,3617.8,10.96751241]
[1753420535239,1e-08,3617.9,3617.8,11.10591241]
[1753420536076,1e-08,3617.9,3617.8,10.28181241]
[1753420536583,1e-08,3617.9,3617.8,10.40331241]
[1753420536744,1e-08,3617.9,3617.8,10.52991241]
[1753420537476,1e-08,3617.9,3617.8,4.82181241]
[1753420537639,1e-08,3617.9,3617.8,10.27481241]
[1753420538240,1e-08,3617.9,3617.8,2.90251078]
[1753420538573,1e-08,3617.9,3617.8,8.37615188]
[1753420538743,1e-08,3617.9,3617.8,8.34851078]
[1753420541848,1e-08,3617.9,3617.8,8.47001078]
[1753420542051,1e-08,3617.9,3617.8,8.57861078]
[1753420542264,1e-08,3617.9,3617.8,9.44279822]
[1753420543878,1e-08,3617.9,3617.8,9.67289822]
[1753420544082,1e-08,3617.9,3617.8,10.49299822]
[1753420545083,1e-08,3617.9,3617.8,11.04299822]
[1753420545883,1e-08,3618.9,3618.6,2.76349969]
[1753420546048,1e-08,3618.9,3618.8,2.90174696]
[1753420546444,1e-08,3618.9,3618.8,3.02324696]
[1753420546990,1e-08,3618.9,3618.8,2.90174696]
[1753420547186,1e-08,3618.9,3618.8,4.09275162]
[1753420547678,1e-08,3618.9,3618.8,9.45075162]
[1753420549592,1e-08,3619.3,3619.2,2.76304155]
[1753420549765,1e-08,3619.4,3619.3,2.76296521]
[1753420550176,1e-08,3619.4,3619.3,2.87156521]
[1753420550497,1e-08,3619.4,3619.3,2.99306521]
[1753420551290,1e-08,3619.9,3619.8,2.76258356]
[1753420551452,1e-08,3619.9,3619.8,3.03884192]
[1753420551653,1e-08,3619.9,3619.8,8.50924192]
[1753420551857,1e-08,3619.9,3619.8,3.17724192]
[1753420552198,1e-08,3619.9,3619.8,8.50724192]
[1753420552991,1e-08,3619.9,3619.8,2.90098356]
[1753420553214,0.91130001,3619.9,3619.8,8.22998356]
[1753420553759,1e-08,3619.9,3619.8,8.22998356]
[1753420554066,1e-08,3619.9,3619.8,8.09158356]
[1753420554862,1e-08,3619.9,3619.8,8.85408356]
[1753420555060,1e-08,3619.9,3619.8,10.01575942]
[1753420558107,1e-08,3619.9,3619.8,3.92425942]
[1753420558409,1e-08,3619.9,3619.8,8.07420939]
[1753420558614,1e-08,3619.9,3619.8,8.04658356]
[1753420559207,1e-08,3619.9,3619.8,9.64028356]
[1753420559378,1e-08,3619.9,3619.8,9.53168356]
[1753420559577,1e-08,3619.9,3619.8,9.41018356]
[1753420559897,1e-08,3619.9,3619.8,10.07146942]
[1753420560206,1e-08,3619.9,3619.8,10.85156942]
[1753420561179,0.04,3620.9,3620.8,2.76182059]
[1753420561380,0.04,3620.9,3620.8,8.03382059]
[1753420561797,0.04,3620.9,3620.8,2.76182059]
[1753420562204,0.04,3620.9,3620.8,8.01982059]
[1753420562205,0.9513,3620.9,3620.8,8.01982059]
[1753420562600,0.04,3620.9,3620.8,8.01982059]
[1753420562813,0.04,3620.9,3620.8,9.37418464]
[1753420563118,0.4656,3621.5,3621.4,2.761363]
[1753420563285,0.4656,3621.5,3621.4,8.013363]
[1753420563480,0.9113,3621.5,3621.4,8.013363]
[1753420563882,0.9113,3621.5,3620.8,1.35436405]
[1753420564104,0.4656,3621.5,3621.4,2.899763]
[1753420564399,0.4656,3621.5,3621.4,8.145763]
[1753420564825,0.9113,3621.5,3621.4,8.145763]
[1753420564993,0.4857,3621.9,3621.8,2.76105803]
[1753420565192,0.4857,3621.9,3621.8,8.00005803]
[1753420565404,0.4857,3621.9,3621.8,2.89945803]
[1753420565583,0.9513,3621.9,3621.8,5.237]
[1753420566697,0.9513,3621.9,3621.8,7.99805803]
[1753420567111,0.04,3621.9,3621.8,9.08782408]
[1753420568423,1e-08,3622.2,3622.1,2.76082935]
[1753420568724,1e-08,3622.2,3622.1,8.11522935]
[1753420568920,0.002,3622.4,3622.3,2.76067691]
[1753420568921,1e-08,3622.4,3622.3,2.76067691]
[1753420569122,1e-08,3622.4,3622.3,9.87316754]
[1753420569330,1e-08,3622.4,3622.3,10.01156754]
[1753420570009,0.4477,3623.7,3622.9,2.76021971]
[1753420570010,1e-08,3623.0,3622.9,2.76021971]
[1753420570323,1e-08,3623.0,3622.9,15.28561971]
[1753420571028,0.002,3623.7,3623.6,2.75968649]
[1753420571327,0.04,3623.9,3623.8,2.75953419]
[1753420571510,0.04,3623.9,3623.8,8.09313419]
[1753420571884,0.04,3623.9,3623.8,2.89713419]
[1753420572083,0.04,3623.9,3623.8,8.08913419]
[1753420572323,0.04,3623.9,3623.8,8.08613419]
[1753420572529,0.2495,3624.0,3623.9,2.75945804]
[1753420572725,1e-08,3624.0,3623.9,2.78705262]
[1753420573028,1e-08,3624.0,3623.9,12.45878981]
[1753420573230,1e-08,3624.0,3623.9,12.43119523]
[1753420574565,1e-08,3624.0,3623.9,2.75945804]
[1753420574566,0.91130001,3624.0,3623.9,2.75945804]
[1753420574716,0.91130001,3624.0,3623.9,7.93445804]
[1753420575044,0.91130001,3624.0,3623.9,2.75945804]